fUSD/lending_fUSD_20240506
["ID","MTS","AMOUNT","RATE_DAILY","PERIOD"]
[326510347,1715031086023,-4504.6,0.00025479,5]
[326510348,1715031086033,-5025.67,0.00025479,5]
[326510349,1715031086042,-513.04,0.00025479,5]
[326510350,1715031086053,-1909.43,0.00025479,5]
[326510351,1715031086063,-3029.95,0.00025479,5]
[326510352,1715031086072,-1172.4,0.00025479,5]
[326510353,1715031086082,-500.0,0.00025479,5]
[326510354,1715031086094,-500.0,0.00025479,5]
[326510355,1715031086104,-500.0,0.00025479,5]
[326510356,1715031086114,-500.0,0.00025479,5]
[326510357,1715031086123,-3129.61,0.00025479,5]
[326510358,1715031086133,-500.0,0.00025479,5]
[326510359,1715031086143,-511.69,0.00025479,5]
[326510360,1715031086153,-500.0,0.00025479,5]
[326510361,1715031086162,-500.0,0.00025479,5]
[326510362,1715031086172,-787.35,0.00025479,5]
[326510363,1715031086184,-2963.62,0.00025479,5]
[326510364,1715031086193,-1725.91,0.00025479,5]
[326510365,1715031086203,-400.05,0.00025479,5]
[326510366,1715031086213,-700.4,0.00025479,5]
[326510367,1715031086229,-2549.89,0.00025479,5]
[326510368,1715031086239,-6089.93,0.00025479,5]
[326510369,1715031086250,-500.0,0.00025479,5]
[326510370,1715031086259,-812.25,0.00025479,5]
[326510371,1715031086268,-1260.28,0.00025479,5]
[326510372,1715031086278,-1645.8,0.00025479,5]
[326510373,1715031086288,-1157.88,0.00025479,5]
[326510374,1715031086298,-840.73,0.00025479,5]
[326510375,1715031086308,-1404.04,0.00025479,5]
[326510376,1715031086319,-500.0,0.00025479,5]
[326510377,1715031086328,-792.22,0.00025479,5]
[326510378,1715031086339,-1298.74,0.00025479,5]
[326510379,1715031086349,-3578.96,0.00025479,5]
[326510380,1715031086358,-600.51,0.00025479,5]
[326510381,1715031086368,-500.0,0.00025479,5]
[326510382,1715031086378,-2941.77,0.00025479,5]
[326510383,1715031086388,-500.0,0.00025479,5]
[326510384,1715031086398,-500.0,0.00025479,5]
[326510385,1715031086407,-5511.73,0.00025479,5]
[326510386,1715031086417,-660.33,0.00025479,5]
[326510387,1715031086428,-587.71,0.00025479,5]
[326510388,1715031086438,-1007.3,0.00025479,5]
[326510389,1715031086447,-1684.79,0.00025479,5]
[326510390,1715031086457,-1598.33,0.00025479,5]
[326510391,1715031086467,-500.0,0.00025479,5]
[326510392,1715031086476,-500.0,0.00025479,5]
[326510393,1715031086486,-792.67,0.00025479,5]
[326510394,1715031086496,-977.38,0.00025479,5]
[326510395,1715031086506,-1317.13,0.00025479,5]
[326510396,1715031086516,-4194.34,0.00025479,5]
[326510397,1715031086526,-1739.99,0.00025479,5]
[326510398,1715031086535,-3442.96,0.00025479,5]
[326510399,1715031086545,-5342.9,0.00025479,5]
[326510400,1715031086555,-1350.74,0.00025479,5]
[326510401,1715031086564,-500.0,0.00025479,5]
[326510402,1715031086574,-500.0,0.00025479,5]
[326510403,1715031086584,-500.0,0.00025479,5]
[326510404,1715031086595,-774.67,0.00025479,5]
[326510405,1715031086604,-1240.38,0.00025479,5]
[326510406,1715031086615,-500.0,0.00025479,5]
[326510407,1715031086624,-500.0,0.00025479,5]
[326510408,1715031086634,-1129.1,0.00025479,5]
[326510409,1715031086644,-500.0,0.00025479,5]
[326510410,1715031086653,-500.0,0.00025479,5]
[326510411,1715031086663,-3043.33,0.00025479,5]
[326510412,1715031086673,-2466.91,0.00025479,5]
[326510413,1715031086682,-627.14,0.00025479,5]
[326510414,1715031086691,-727.16,0.00025479,5]
[326510415,1715031086701,-500.0,0.00025479,5]
[326510416,1715031086711,-500.0,0.00025479,5]
[326510417,1715031086720,-1388.01,0.00025479,5]
[326510418,1715031086730,-500.0,0.00025479,5]
[326510419,1715031086739,-3099.06,0.00025479,5]
[326510420,1715031086749,-500.0,0.00025479,5]
[326510421,1715031086758,-1636.84,0.00025479,5]
[326510422,1715031086768,-1048.78,0.00025479,5]
[326510423,1715031086777,-832.43,0.00025479,5]
[326510424,1715031086786,-733.28,0.00025479,5]
[326510425,1715031086795,-857.25,0.00025479,5]
[326510426,1715031086805,-3047.56,0.00025479,5]
[326510427,1715031086815,-9328.48,0.00025479,5]
[326510428,1715031086852,-679.68,0.00025479,5]
[326510429,1715031086862,-3821.76,0.00025479,5]
[326510430,1715031086871,-2214.86764536,0.00025479,5]
[326510431,1715031088628,-2186.37961417,0.00022,2]
[326510432,1715031088640,-200.4892647,0.00022,2]
[326510433,1715031088651,-2386.86887887,0.00022,2]
[326510434,1715031088661,-2386.86887887,0.00022,2]
[326510435,1715031088670,-904.18858336,0.00022,2]
[326510436,1715031088683,-958.14681319,0.00022,2]
[326510437,1715031088842,-524.53348232,0.00022,2]
[326510438,1715031088852,-2386.86887887,0.00022,2]
[326510439,1715031088862,-2386.86887887,0.00022,2]
[326510440,1715031088872,-2386.86887887,0.00022,2]
[326510441,1715031088882,-564.67290522,0.00023541,2]
[326510442,1715031088894,-500.0,0.00024657,2]
[326510443,1715031088904,-500.0,0.00024657,2]
[326510444,1715031088915,-500.0,0.00024657,2]
[326510445,1715031088926,-500.0,0.00024657,2]
[326510446,1715031088935,-688.1,0.00024931,3]
[326510447,1715031088944,-11069.99,0.00024931,3]
[326510448,1715031088954,-500.0,0.00024931,3]
[326510449,1715031088963,-500.0,0.00024931,3]
[326510450,1715031088974,-500.0,0.00024931,3]
[326510451,1715031088983,-1926.13,0.00024931,3]
[326510452,1715031088992,-500.0,0.00024931,3]
[326510453,1715031089002,-11069.99,0.00025205,4]
[326510454,1715031089012,-688.1,0.00025205,4]
[326510455,1715031089022,-500.0,0.00025205,4]
[326510456,1715031089033,-500.0,0.00025205,4]
[326510457,1715031089043,-500.0,0.00025205,4]
[326510458,1715031089055,-1926.13,0.00025205,4]
[326510459,1715031089064,-500.0,0.00025205,4]
[326510460,1715031089074,-205.63235464,0.00025479,5]
[326510461,1715031089084,-740.67,0.00025479,5]
[326510462,1715031089095,-5805.45,0.00025479,5]
[326510463,1715031089105,-500.0,0.00025479,5]
[326510464,1715031089115,-500.0,0.00025479,5]
[326510465,1715031089125,-664.82,0.00025479,5]
[326510466,1715031089134,-561.72,0.00025479,5]
[326510467,1715031089144,-3214.95,0.00025479,5]
[326510468,1715031089153,-2553.92,0.00025479,5]
[326510469,1715031089162,-1621.27,0.00025479,5]
[326510470,1715031089172,-500.0,0.00025479,5]
[326510471,1715031089183,-445.9440815,0.00025479,5]
[326510472,1715031089193,-1194.71,0.00025479,5]
[326510473,1715031089203,-1498.67,0.00025479,5]
[326510474,1715031089212,-4675.22,0.00025479,5]
[326510475,1715031089226,-1098.83,0.00025479,5]
[326510476,1715031089236,-500.0,0.00025479,5]
[326510477,1715031089246,-1309.62,0.00025479,5]
[326510478,1715031089256,-2788.51,0.00025479,5]
[326510479,1715031089267,-931.25,0.00025479,5]
[326510480,1715031089277,-4188.07,0.00025479,5]
[326510481,1715031089287,-500.0,0.00025479,5]
[326510482,1715031089297,-500.0,0.00025479,5]
[326510483,1715031089307,-6306.54,0.00025479,5]
[326510484,1715031089316,-1486.86,0.00025479,5]
[326510485,1715031089326,-1951.05,0.00025479,5]
[326510486,1715031089335,-3336.65,0.00025479,5]
[326510487,1715031089346,-645.33426042,0.00025479,5]
[326510488,1715031089356,-500.0,0.00025479,5]
[326510489,1715031089365,-917.46,0.00025479,5]
[326510490,1715031089375,-1477.39,0.00025479,5]
[326510491,1715031089384,-8966.68,0.00025479,5]
[326510492,1715031089395,-38458.54,0.00025479,5]
[326510493,1715031089404,-500.0,0.00025479,5]
[326510494,1715031089414,-588.98511512,0.00025479,5]
[326510495,1715031089597,-16163.72,0.00025479,5]
[326510496,1715031089643,-1045.76,0.00025479,5]
[326510497,1715031089653,-500.0,0.00025479,5]
[326510498,1715031089663,-504.91,0.00025479,5]
[326510499,1715031089674,-954.12,0.00025479,5]
[326510500,1715031089683,-500.0,0.00025479,5]
[326510501,1715031089693,-723.3,0.00025479,5]
[326510502,1715031089704,-2237.84,0.00025479,5]
[326510503,1715031089714,-500.0,0.00025479,5]
[326510504,1715031089723,-6339.84,0.00025479,5]
[326510505,1715031089732,-10496.44,0.00025479,5]
[326510506,1715031089742,-4475.05,0.00025479,5]
[326510507,1715031089751,-1756.59,0.00025479,5]
[326510508,1715031089761,-500.0,0.00025479,5]
[326510509,1715031089770,-2908.13,0.00025479,5]
[326510510,1715031089780,-500.0,0.00025479,5]
[326510511,1715031089789,-9791.9,0.00025479,5]
[326510512,1715031089798,-500.0,0.00025479,5]
[326510513,1715031089808,-2458.11,0.00025479,5]
[326510514,1715031089832,-3365.17,0.00025479,5]
[326510515,1715031089851,-1502.16,0.00025479,5]
[326510516,1715031089861,-6684.05,0.00025479,5]
[326510517,1715031089871,-2796.08,0.00025479,5]
[326510518,1715031089881,-913.77,0.00025479,5]
[326510519,1715031089890,-2665.85,0.00025479,5]
[326510520,1715031089900,-1231.26,0.00025479,5]
[326510521,1715031089910,-893.99,0.00025479,5]
[326510522,1715031089922,-625.16,0.00025479,5]
[326510523,1715031089932,-1040.2,0.00025479,5]
[326510524,1715031089942,-500.0,0.00025479,5]
[326510525,1715031089953,-500.0,0.00025479,5]
[326510526,1715031089963,-7494.2,0.00025479,5]
[326510527,1715031089973,-4199.64,0.00025479,5]
[326510528,1715031089982,-811.28,0.00025479,5]
[326510529,1715031089994,-2901.29,0.00025479,5]
[326510530,1715031090004,-531.76,0.00025479,5]
[326510531,1715031090017,-500.0,0.00025479,5]
[326510532,1715031090028,-641.66,0.00025479,5]
[326510533,1715031090038,-3059.42,0.00025479,5]
[326510534,1715031090051,-14507.83,0.00025479,5]
[326510535,1715031090061,-5391.44,0.00025479,5]
[326510536,1715031090071,-500.0,0.00025479,5]
[326510537,1715031090081,-719.48,0.00025479,5]
[326510538,1715031090092,-4378.65,0.00025479,5]
[326510539,1715031090102,-3354.72,0.00025479,5]
[326510540,1715031090113,-703.99,0.00025479,5]
[326510541,1715031090123,-545.58,0.00025479,5]
[326510542,1715031090134,-569.77,0.00025479,5]
[326510543,1715031090144,-851.16,0.00025479,5]
[326510544,1715031090153,-815.86,0.00025479,5]
[326510545,1715031090163,-1574.0,0.00025479,5]
[326510546,1715031090174,-3395.03,0.00025479,5]
[326510547,1715031090183,-500.0,0.00025479,5]
[326510548,1715031090193,-500.0,0.00025479,5]
[326510549,1715031090202,-3331.75,0.00025479,5]
[326510550,1715031090211,-6020.83,0.00025479,5]
[326510551,1715031090221,-500.0,0.00025479,5]
[326510552,1715031090231,-1444.79,0.00025479,5]
[326510553,1715031090241,-2536.39,0.00025479,5]
[326510554,1715031090252,-6457.19,0.00025479,5]
[326510555,1715031090261,-500.0,0.00025479,5]
[326510556,1715031090270,-500.0,0.00025479,5]
[326510557,1715031090279,-500.0,0.00025479,5]
[326510558,1715031090290,-1376.22,0.00025479,5]
[326510559,1715031090299,-1281.46,0.00025479,5]
[326510560,1715031090309,-500.0,0.00025479,5]
[326510561,1715031090346,-500.0,0.00025479,5]
[326510562,1715031090355,-1487.03,0.00025479,5]
[326510563,1715031090365,-699.64,0.00025479,5]
[326510564,1715031090375,-1058.18,0.00025479,5]
[326510565,1715031090385,-1648.26,0.00025479,5]
[326510566,1715031090394,-2243.7,0.00025479,5]
[326510567,1715031090403,-500.0,0.00025479,5]
[326510568,1715031090413,-24024.6,0.00025479,5]
[326510569,1715031090422,-573.81,0.00025479,5]
[326510570,1715031090432,-500.0,0.00025479,5]
[326510571,1715031090441,-913.31,0.00025479,5]
[326510572,1715031090450,-500.0,0.00025479,5]
[326510573,1715031090460,-1000.15,0.00025479,5]
[326510574,1715031090469,-1347.18,0.00025479,5]
[326510575,1715031090478,-3206.02,0.00025479,5]
[326510576,1715031090488,-3177.01,0.00025479,5]
[326510577,1715031090499,-500.0,0.00025479,5]
[326510578,1715031090508,-1089.08,0.00025479,5]
[326510579,1715031090518,-4104.22,0.00025479,5]
[326510580,1715031090528,-3697.1,0.00025479,5]
[326510581,1715031090538,-1155.31,0.00025479,5]
[326510582,1715031090547,-3482.33,0.00025479,5]
[326510583,1715031090556,-728.07,0.00025479,5]
[326510584,1715031090566,-6226.62,0.00025479,5]
[326510585,1715031090575,-886.73,0.00025479,5]
[326510586,1715031090586,-647.95,0.00025479,5]
[326510587,1715031090596,-806.55,0.00025479,5]
[326510588,1715031090605,-500.0,0.00025479,5]
[326510589,1715031090615,-1331.39,0.00025479,5]
[326510590,1715031090624,-500.0,0.00025479,5]
[326510591,1715031090635,-1926.28,0.00025479,5]
[326510592,1715031090645,-17511.2,0.00025479,5]
[326510593,1715031090654,-500.0,0.00025479,5]
[326510594,1715031090664,-500.0,0.00025479,5]
[326510595,1715031090674,-4104.32,0.00025479,5]
[326510596,1715031090698,-500.0,0.00025479,5]
[326510597,1715031090711,-4383.07,0.00025479,5]
[326510598,1715031090721,-5721.59,0.00025479,5]
[326510599,1715031090731,-1587.69,0.00025479,5]
[326510600,1715031090740,-2145.43,0.00025479,5]
[326510601,1715031090749,-500.0,0.00025479,5]
[326510602,1715031090759,-4109.65,0.00025479,5]
[326510603,1715031090768,-500.0,0.00025479,5]
[326510604,1715031090777,-500.0,0.00025479,5]
[326510605,1715031090787,-1693.82,0.00025479,5]
[326510606,1715031090796,-3818.45,0.00025479,5]
[326510607,1715031090805,-2489.13,0.00025479,5]
[326510608,1715031090814,-500.0,0.00025479,5]
[326510609,1715031090823,-500.0,0.00025479,5]
[326510610,1715031090833,-1235.6,0.00025479,5]
[326510611,1715031090843,-1803.06,0.00025479,5]
[326510612,1715031090852,-1422.98,0.00025479,5]
[326510613,1715031090861,-500.0,0.00025479,5]
[326510614,1715031090872,-925.53,0.00025479,5]
[326510615,1715031090881,-500.0,0.00025479,5]
[326510616,1715031090890,-500.0,0.00025479,5]
[326510617,1715031090899,-4009.65,0.00025479,5]
[326510618,1715031090909,-1763.79,0.00025479,5]
[326510619,1715031090920,-500.0,0.00025479,5]
[326510620,1715031090930,-3455.01,0.00025479,5]
[326510621,1715031090939,-3090.21,0.00025479,5]
[326510622,1715031090948,-2109.91,0.00025479,5]
[326510623,1715031090958,-8993.73,0.00025479,5]
[326510624,1715031090967,-752.53,0.00025479,5]
[326510625,1715031090977,-500.0,0.00025479,5]
[326510626,1715031090986,-1452.46,0.00025479,5]
[326510627,1715031090996,-527.49,0.00025479,5]
[326510628,1715031091010,-1296.18,0.00025479,5]
[326510629,1715031091020,-1003.75,0.00025479,5]
[326510630,1715031091030,-2186.59,0.00025479,5]
[326510631,1715031091039,-1095.95,0.00025479,5]
[326510632,1715031091051,-1539.92,0.00025479,5]
[326510633,1715031091060,-500.0,0.00025479,5]
[326510634,1715031091070,-500.0,0.00025479,5]
[326510635,1715031091079,-1168.32,0.00025479,5]
[326510636,1715031091089,-2768.2,0.00025479,5]
[326510637,1715031091098,-2118.72,0.00025479,5]
[326510638,1715031091108,-967.43,0.00025479,5]
[326510639,1715031091118,-2922.7,0.00025479,5]
[326510640,1715031091142,-1023.47,0.00025479,5]
[326510641,1715031091152,-744.17,0.00025479,5]
[326510642,1715031091162,-649.81,0.00025479,5]
[326510643,1715031091172,-1773.59,0.00025479,5]
[326510644,1715031091182,-2195.84,0.00025479,5]
[326510645,1715031091192,-1361.61,0.00025479,5]
[326510646,1715031091201,-503.86,0.00025479,5]
[326510647,1715031091211,-526.56,0.00025479,5]
[326510648,1715031091220,-1416.83,0.00025479,5]
[326510649,1715031091229,-933.52,0.00025479,5]
[326510650,1715031091239,-500.0,0.00025479,2]
[326510651,1715031091248,-10444.6,0.00025479,5]
[326510652,1715031091260,-552.72,0.00025479,5]
[326510653,1715031091271,-2690.11,0.00025479,5]
[326510654,1715031091288,-1747.89,0.00025479,5]
[326510655,1715031091298,-1473.33,0.00025479,5]
[326510656,1715031091308,-1828.82,0.00025479,5]
[326510657,1715031091318,-2767.88,0.00025479,5]
[326510658,1715031091327,-21366.79538719,0.00025479,5]
[326510659,1715031091344,-22866.97461281,0.00025479,5]
[326510660,1715031091353,-500.0,0.00025479,5]
[326510661,1715031091363,-1382.73,0.00025479,5]
[326510662,1715031091372,-830.11,0.00025479,5]
[326510663,1715031091382,-2490.28,0.00025479,5]
[326510664,1715031091392,-500.0,0.00025479,2]
[326510665,1715031091402,-862.67,0.00025479,5]
[326510666,1715031091412,-500.0,0.00025479,5]
[326510667,1715031091421,-606.79,0.00025479,5]
[326510668,1715031091430,-16633.17,0.00025479,5]
[326510669,1715031091440,-6645.33,0.00025479,5]
[326510670,1715031091449,-4032.46,0.00025479,5]
[326510671,1715031091458,-2140.33,0.00025479,5]
[326510672,1715031091468,-500.0,0.00025479,5]
[326510673,1715031091477,-934.62,0.00025479,5]
[326510674,1715031091487,-727.22,0.00025479,5]
[326510675,1715031091496,-1633.94,0.00025479,5]
[326510676,1715031091505,-969.39,0.00025479,5]
[326510677,1715031091514,-1940.41,0.00025479,5]
[326510678,1715031091524,-500.0,0.00025479,5]
[326510679,1715031091535,-4644.11,0.00025479,5]
[326510680,1715031091546,-730.34,0.00025479,5]
[326510681,1715031091581,-572.84,0.00025479,5]
[326510682,1715031091590,-1375.0,0.00025479,5]
[326510683,1715031091600,-1590.77,0.00025479,5]
[326510684,1715031091610,-2356.14,0.00025479,5]
[326510685,1715031091620,-929.36,0.00025479,5]
[326510686,1715031091629,-3353.91,0.00025479,5]
[326510687,1715031091639,-500.0,0.00025479,5]
[326510688,1715031091649,-500.0,0.00025479,5]
[326510689,1715031091658,-11069.99,0.00025479,5]
[326510690,1715031091668,-688.1,0.00025479,5]
[326510691,1715031091678,-500.0,0.00025479,5]
[326510692,1715031091687,-500.0,0.00025479,5]
[326510693,1715031091698,-472.33845119,0.00025479,5]
[326510694,1715031091708,-1926.13,0.00025479,5]
[326510695,1715031091717,-472.74915276,0.00025479,5]
[326510696,1715031091727,-157.050619,0.00025498,4]
[326510697,1715031091736,-192.27,0.000255,2]
[326510698,1715031091745,-1211.8502272,0.00025516,2]
[326510699,1715031091756,-6967.95997308,0.00025528,2]
[326510700,1715031091765,-150.0,0.00025534,4]
[326510701,1715031091775,-1976.51651022,0.00025549,2]
[326510702,1715031091784,-150.0,0.00025558,4]
[326510703,1715031091794,-181.78697411,0.00025585,10]
[326510704,1715031091805,-150.0,0.00025594,4]
[326510705,1715031091816,-204.0,0.0002563,2]
[326510706,1715031091826,-212.0,0.0002563,2]
[326510707,1715031091837,-150.0,0.00025653,4]
[326510708,1715031091847,-156.29007043,0.00025665,2]
[326510709,1715031091856,-150.0,0.00025679,4]
[326510710,1715031091882,-165.5,0.0002568,15]
[326510712,1715031091900,-150.5,0.0002569,15]
[326510713,1715031091909,-150.0,0.00025713,4]
[326510714,1715031091921,-362.37557408,0.00025752,2]
[326510715,1715031091931,-10711.40876323,0.00025753,3]
[326510716,1715031091941,-531.02,0.00025753,6]
[326510717,1715031091951,-539.13,0.00025753,6]
[326510718,1715031091960,-500.0,0.00025753,6]
[326510719,1715031091968,-746.6,0.00025753,6]
[326510720,1715031091977,-500.0,0.00025753,6]
[326510721,1715031091986,-856.8,0.00025753,6]
[326510722,1715031091996,-500.0,0.00025753,6]
[326510723,1715031092008,-599.37,0.00025753,6]
[326510724,1715031092017,-1336.61,0.00025753,6]
[326510725,1715031092027,-538.01,0.00025753,6]
[326510726,1715031092035,-776.17,0.00025753,6]
[326510727,1715031092044,-1415.7,0.00025753,6]
[326510728,1715031092054,-500.0,0.00025753,6]
[326510729,1715031092063,-500.0,0.00025753,6]
[326510730,1715031092072,-536.29,0.00025753,6]
[326510731,1715031092082,-500.0,0.00025753,6]
[326510732,1715031092095,-556.86,0.00025753,6]
[326510733,1715031092106,-500.0,0.00025753,6]
[326510734,1715031092115,-500.0,0.00025753,6]
[326510735,1715031092125,-693.93,0.00025753,6]
[326510736,1715031092135,-500.0,0.00025753,6]
[326510737,1715031092145,-968.39,0.00025753,6]
[326510738,1715031092155,-922.3,0.00025753,6]
[326510739,1715031092166,-500.0,0.00025753,6]
[326510740,1715031092176,-648.3,0.00025753,6]
[326510741,1715031092213,-1253.54,0.00025753,6]
[326510742,1715031092230,-937.46,0.00025753,6]
[326510743,1715031092239,-500.0,0.00025753,6]
[326510744,1715031092248,-722.6,0.00025753,6]
[326510745,1715031092258,-500.0,0.00025753,6]
[326510746,1715031092268,-500.0,0.00025753,6]
[326510747,1715031092277,-500.0,0.00025753,6]
[326510748,1715031092287,-843.26,0.00025753,6]
[326510749,1715031092296,-500.0,0.00025753,6]
[326510750,1715031092306,-626.2,0.00025753,6]
[326510751,1715031092315,-513.62,0.00025753,6]
[326510752,1715031092324,-857.44,0.00025753,6]
[326510753,1715031092334,-1096.6,0.00025753,6]
[326510754,1715031092344,-665.26,0.00025753,6]
[326510755,1715031092353,-500.0,0.00025753,6]
[326510756,1715031092363,-500.0,0.00025753,6]
[326510757,1715031092372,-500.0,0.00025753,6]
[326510758,1715031092382,-1313.63,0.00025753,2]
[326510759,1715031092391,-543.13,0.00025753,6]
[326510760,1715031092400,-628.4,0.00025753,6]
[326510761,1715031092410,-614.27,0.00025753,6]
[326510762,1715031092419,-500.0,0.00025753,6]
[326510763,1715031092429,-500.0,0.00025753,6]
[326510764,1715031092438,-545.0,0.00025753,6]
[326510765,1715031092447,-500.0,0.00025753,6]
[326510766,1715031092457,-530.05,0.00025753,6]
[326510767,1715031092466,-702.2,0.00025753,6]
[326510768,1715031092475,-1053.6,0.00025753,6]
[326510769,1715031092485,-500.0,0.00025753,6]
[326510770,1715031092496,-793.3,0.00025753,6]
[326510771,1715031092506,-500.0,0.00025753,6]
[326510772,1715031092516,-500.0,0.00025753,6]
[326510773,1715031092526,-500.0,0.00025753,6]
[326510774,1715031092536,-500.0,0.00025753,6]
[326510775,1715031092547,-559.48,0.00025753,6]
[326510776,1715031092556,-500.0,0.00025753,6]
[326510777,1715031092564,-500.0,0.00025753,6]
[326510778,1715031092573,-500.0,0.00025753,6]
[326510779,1715031092583,-500.0,0.00025753,6]
[326510780,1715031092592,-698.42,0.00025753,6]
[326510781,1715031092601,-500.0,0.00025753,6]
[326510782,1715031092610,-1144.43,0.00025753,6]
[326510783,1715031092619,-1002.72,0.00025753,6]
[326510784,1715031092628,-979.22,0.00025753,6]
[326510785,1715031092638,-586.1,0.00025753,6]
[326510786,1715031092647,-574.88,0.00025753,6]
[326510787,1715031092656,-1115.05,0.00025753,6]
[326510788,1715031092665,-500.0,0.00025753,6]
[326510789,1715031092675,-500.0,0.00025753,6]
[326510790,1715031092685,-500.0,0.00025753,6]
[326510791,1715031092695,-500.0,0.00025753,6]
[326510792,1715031092705,-892.13,0.00025753,6]
[326510793,1715031092714,-761.33,0.00025753,6]
[326510794,1715031092724,-500.0,0.00025753,6]
[326510795,1715031092734,-908.25,0.00025753,6]
[326510796,1715031092744,-504.48,0.00025753,6]
[326510797,1715031092755,-500.0,0.00025753,6]
[326510798,1715031092764,-1574.06,0.00025753,6]
[326510799,1715031092773,-843.24,0.00025753,6]
[326510800,1715031092783,-500.0,0.00025753,6]
[326510801,1715031092792,-500.0,0.00025753,6]
[326510802,1715031092801,-826.06,0.00025753,6]
[326510803,1715031092812,-948.59,0.00025753,6]
[326510804,1715031092822,-545.84,0.00025753,6]
[326510805,1715031092832,-500.0,0.00025753,6]
[326510806,1715031092842,-500.0,0.00025753,6]
[326510807,1715031092851,-500.0,0.00025753,6]
[326510808,1715031092860,-1027.69,0.00025753,6]
[326510809,1715031092870,-500.0,0.00025753,6]
[326510810,1715031092879,-500.0,0.00025753,6]
[326510811,1715031092888,-500.0,0.00025753,6]
[326510812,1715031092898,-596.87,0.00025753,6]
[326510813,1715031092907,-500.0,0.00025753,6]
[326510814,1715031092920,-500.0,0.00025753,6]
[326510815,1715031092930,-726.32,0.00025753,6]
[326510816,1715031092939,-793.01,0.00025753,6]
[326510817,1715031092949,-500.0,0.00025753,6]
[326510818,1715031092958,-500.0,0.00025753,6]
[326510819,1715031092967,-500.0,0.00025753,6]
[326510820,1715031092976,-500.0,0.00025753,6]
[326510821,1715031092986,-500.0,0.00025753,6]
[326510822,1715031092995,-640.4548345,0.00025753,6]
[326510823,1715031093007,-1027.86,0.00025753,6]
[326510824,1715031093201,-500.0,0.00025753,6]
[326510825,1715031093212,-1093.04,0.00025753,6]
[326510826,1715031093223,-500.0,0.00025753,6]
[326510827,1715031093233,-500.0,0.00025753,6]
[326510828,1715031093244,-500.0,0.00025753,6]
[326510829,1715031093253,-233.20548768,0.00025753,6]
[326510830,1715031093263,-1117.54,0.00025753,6]
[326510831,1715031093273,-826.08,0.00025753,6]
[326510832,1715031093283,-1560.08,0.00025753,6]
[326510833,1715031093292,-500.0,0.00025753,6]
[326510834,1715031093302,-595.69,0.00025753,6]
[326510835,1715031093311,-567.92,0.00025753,6]
[326510836,1715031093320,-927.79,0.00025753,6]
[326510837,1715031093331,-500.0,0.00025753,6]
[326510838,1715031093342,-656.72,0.00025753,6]
[326510839,1715031093352,-1096.55,0.00025753,6]
[326510840,1715031093362,-500.0,0.00025753,6]
[326510841,1715031093372,-612.43,0.00025753,6]
[326510842,1715031093382,-500.0,0.00025753,6]
[326510843,1715031093391,-500.0,0.00025753,6]
[326510844,1715031093401,-500.0,0.00025753,6]
[326510845,1715031093410,-624.02,0.00025753,6]
[326510846,1715031093419,-540.26,0.00025753,6]
[326510847,1715031093430,-178.96195845,0.00025753,6]